bitfinex-derivatives/quotes_BNBF0:USTF0_20250305
["timestamp","ask_amount","ask_price","bid_price","bid_amount"]
[1741202296843,1.23495585,595.81,594.78,0.33625878]
[1741202297045,2.48219364,595.81,594.78,0.33625878]
[1741202297241,0.95486715,595.8,594.78,0.33625878]
[1741202297449,1.23495585,595.8,594.78,0.33625878]
[1741202298043,1.23495585,595.79,594.78,0.33625878]
[1741202298948,1.23495585,595.78,594.78,0.33625878]
[1741202299242,0.95486715,595.77,594.78,0.33625878]
[1741202299450,0.95486715,595.76,594.78,0.33625878]
[1741202299650,0.95486715,595.75,594.78,0.33625878]
[1741202299848,1.23495585,595.75,594.78,0.33625878]
[1741202300044,0.95486715,595.74,594.78,0.33625878]
[1741202300243,1.52738422,595.75,594.78,0.33625878]
[1741202300446,1.23495585,595.73,594.78,0.33625878]
[1741202300851,1.23495585,595.72,594.78,0.33625878]
[1741202301246,3.71761044,595.72,594.78,0.33625878]
[1741202301449,2.48265459,595.71,594.78,0.33625878]
[1741202301643,0.95486715,595.71,594.78,0.33625878]
[1741202301848,1.23495585,595.7,594.78,0.33625878]
[1741202302449,0.30869581,595.69,594.78,0.33625878]
[1741202302649,0.95486715,595.68,594.78,0.33625878]
[1741202303045,0.95486715,595.67,594.78,0.33625878]
[1741202303252,0.29245295,595.67,594.65,0.29245295]
[1741202303446,1.23495585,595.66,594.65,0.29245295]
[1741202303945,1.54366643,595.65,594.65,0.29245295]
[1741202304150,1.23495585,595.65,594.65,0.29245295]
[1741202304747,1.23495585,595.64,594.65,0.29245295]
[1741202304944,1.23495585,595.64,594.06,1.48921662]
[1741202305151,1.23495585,595.64,594.08,0.33665499]
[1741202305348,1.23495585,595.63,594.08,0.33665499]
[1741202306051,0.29248367,595.62,594.09,0.29248367]
[1741202306352,1.23495585,595.61,594.11,0.33663799]
[1741202306851,2.189823,595.61,594.13,1.48921662]
[1741202307052,1.26358571,595.6,594.15,0.33661533]
[1741202307248,0.30871856,595.59,594.15,0.33661533]
[1741202307751,0.30871856,595.61,594.15,0.33661533]
[1741202308052,1.23495585,595.58,594.15,0.33661533]
[1741202308248,0.30871856,595.57,594.15,0.33661533]
[1741202308847,0.29251563,595.56,594.15,0.33661533]
[1741202309152,0.30871856,595.55,594.15,0.33661533]
[1741202309851,3.50340084,595.56,594.15,0.33661533]
[1741202310049,3.12727077,595.55,594.15,0.33661533]
[1741202310347,0.64462182,595.54,594.15,0.33661533]
[1741202310553,0.64462746,595.53,594.15,0.33661533]
[1741202310853,0.6446331,595.52,594.15,0.33661533]
[1741202311049,0.30879216,595.51,594.15,0.33661533]
[1741202311947,0.33584094,595.52,594.15,0.33661533]
[1741202312947,0.938,595.51,594.15,0.33661533]
[1741202319054,1.8894127,595.51,594.15,0.33661533]
[1741202319249,3.12436855,595.51,594.15,0.33661533]
[1741202319552,2.47339358,595.5,594.15,0.33661533]
[1741202320054,1.23495585,595.49,594.15,0.33661533]
[1741202320256,3.70834943,595.49,594.15,0.33661533]
[1741202320956,1.23495585,595.48,594.15,0.33661533]
[1741202321151,1.52756126,595.48,594.15,0.33661533]
[1741202321952,0.33586914,595.47,594.15,0.33661533]
[1741202322856,2.80771971,595.47,594.15,0.33661533]
[1741202323056,4.49816705,595.47,594.15,0.33661533]
[1741202323257,0.9514127,595.46,594.15,0.33661533]
[1741202323953,0.33586914,595.47,594.15,0.33661533]
[1741202327256,0.29254637,595.46,594.15,0.33661533]
[1741202327559,0.62842115,595.46,594.15,0.33661533]
[1741202328960,0.33587478,595.46,594.15,0.33661533]
[1741202330157,0.29264478,595.45,594.15,0.33661533]
[1741202331656,0.33588606,595.44,594.15,0.33661533]
[1741202332262,0.30892068,595.43,594.15,0.33661533]
[1741202332563,0.33589734,595.42,594.15,0.33661533]
[1741202332761,1.57085319,595.42,594.15,0.33661533]
[1741202332961,0.30892219,595.41,594.15,0.33661533]
[1741202333463,1.57086448,595.4,594.15,0.33661533]
[1741202333657,0.30892219,595.39,594.15,0.33661533]
[1741202333860,0.33591991,595.38,594.15,0.33661533]
[1741202334057,0.30892219,595.37,594.15,0.33661533]
[1741202334261,0.3359312,595.36,594.15,0.33661533]
[1741202334665,0.30892496,595.35,594.15,0.33661533]
[1741202334865,1.23495585,595.39,594.15,0.33661533]
[1741202334866,0.33594248,595.34,594.15,0.33661533]
[1741202336166,0.292694,595.33,594.15,0.33661533]
[1741202336364,0.33595377,595.32,594.15,0.33661533]
[1741202339066,0.29264724,595.31,594.15,0.33661533]
[1741202340865,0.33595377,595.32,594.15,0.33661533]
[1741202341069,0.29258819,595.3,594.15,0.33661533]
[1741202341773,0.30890795,595.29,594.15,0.33661533]
[1741202343871,2.7724734,595.29,594.15,0.33661533]
[1741202344072,5.98335861,595.29,594.15,0.33661533]
[1741202344267,2.7724734,595.28,594.15,0.33661533]
[1741202344571,1.5438638,595.27,594.15,0.33661533]
[1741202344774,0.30890795,595.26,594.15,0.33661533]
[1741202345474,1.5438638,595.26,594.15,0.33661533]
[1741202345673,0.30890795,595.25,594.15,0.33661533]
[1741202347070,0.60150352,595.26,594.15,0.33661533]
[1741202347271,0.30890795,595.25,594.15,0.33661533]
[1741202347669,0.29259557,595.26,594.15,0.33661533]
[1741202349876,0.3359707,595.29,594.15,0.33661533]
[1741202351272,0.29258204,595.28,594.15,0.33661533]
[1741202352878,0.3359707,595.29,594.15,0.33661533]
[1741202353272,0.902,595.28,594.15,0.33661533]
[1741202360290,0.902,595.28,594.17,1.48921662]
[1741202360586,0.902,595.28,594.19,0.33659267]
[1741202362387,0.902,595.28,594.21,1.48921662]
[1741202362981,0.902,595.28,594.23,0.33657001]
[1741202402414,0.902,595.28,594.37,1.48921662]
[1741202402617,0.902,595.28,594.38,0.33648507]
[1741202407323,2.48501534,595.49,594.38,0.33648507]
[1741202407824,3.21088521,595.5,594.38,0.33648507]
[1741202408226,2.48541265,595.49,594.38,0.33648507]
[1741202408427,2.48574001,595.49,594.38,0.33648507]
[1741202408725,2.48585925,595.49,594.38,0.33648507]
[1741202409631,1.23495585,595.48,594.38,0.33648507]
[1741202410033,1.23495585,595.47,594.38,0.33648507]
[1741202410427,2.08895585,595.46,594.38,0.33648507]
[1741202410927,0.854,595.46,594.38,0.33648507]
[1741202412534,1.23495585,595.45,594.38,0.33648507]
[1741202413535,1.23495585,595.44,594.38,0.33648507]
[1741202413936,1.23495585,595.43,594.38,0.33648507]
[1741202414335,1.23495585,595.44,594.38,0.33648507]
[1741202414532,2.19105556,595.44,594.38,0.33648507]
[1741202414732,0.95609971,595.43,594.38,0.33648507]
[1741202414934,2.19105556,595.43,594.38,0.33648507]
[1741202415130,0.95609971,595.42,594.38,0.33648507]
[1741202415529,1.23495585,595.45,594.38,0.33648507]
[1741202416135,1.23495585,595.44,594.38,0.33648507]
[1741202416738,1.23495585,595.45,594.38,0.33648507]
[1741202417633,1.23495585,595.44,594.38,0.33648507]
[1741202418235,1.23495585,595.45,594.38,0.33648507]
[1741202419735,0.854,595.46,594.38,0.33648507]
[1741202426856,0.854,595.46,594.38,1.82570169]
[1741202429754,0.854,595.46,594.38,0.33648507]
[1741202433460,0.854,595.46,594.41,1.48921662]
[1741202433661,0.854,595.46,594.42,0.33646243]
[1741202441567,0.854,595.46,594.42,1.82567905]
[1741202443771,0.854,595.46,594.42,0.33646243]
[1741202445267,0.854,595.46,594.45,1.48921662]
[1741202445473,0.854,595.46,594.47,0.33643413]
[1741202448979,0.854,595.46,594.53,1.48921662]
[1741202449377,0.854,595.46,594.55,0.33638886]
[1741202454983,0.854,595.46,594.59,1.48921662]
[1741202455184,0.854,595.46,594.6,0.33636057]
[1741202456584,0.854,595.46,594.61,1.48921662]
[1741202457080,0.854,595.46,594.62,0.33634926]
[1741202461282,0.854,595.46,594.62,0.33634926]
[1741202465591,0.29235713,595.89,594.62,0.33634926]
[1741202465992,0.29235713,595.89,594.66,1.48921662]
[1741202467190,0.29235713,595.89,594.67,0.33632098]
[1741202467688,0.30858326,595.88,594.67,0.33632098]
[1741202468787,1.049,595.87,594.67,0.33632098]
[1741202468994,0.30858326,595.86,594.67,0.33632098]
[1741202470293,0.29231784,595.85,594.67,0.33632098]
[1741202470488,0.30858326,595.84,594.67,0.33632098]
[1741202471390,1.23495585,595.83,594.67,0.33632098]
[1741202471792,1.23495585,595.82,594.67,0.33632098]
[1741202472390,0.29231784,595.85,594.67,0.33632098]
[1741202472794,2.77448958,595.85,594.67,0.33632098]
[1741202472987,2.48217174,595.85,594.67,0.33632098]
[1741202473192,3.71712759,595.85,594.67,0.33632098]
[1741202473388,0.29232398,595.84,594.67,0.33632098]
[1741202473890,1.52727983,595.84,594.67,0.33632098]
[1741202474291,0.30862569,595.83,594.67,0.33632098]
[1741202474791,1.23495585,595.82,594.67,0.33632098]
[1741202474996,0.30862569,595.81,594.67,0.33632098]
[1741202475596,2.48217174,595.82,594.67,0.33632098]
[1741202475898,1.54358636,595.81,594.67,0.33632098]
[1741202476092,3.71712759,595.81,594.67,0.33632098]
[1741202476398,2.48217174,595.8,594.67,0.33632098]
[1741202476598,1.52729579,595.81,594.67,0.33632098]
[1741202477198,1.23495585,595.8,594.67,0.33632098]
[1741202477799,3.71712759,595.8,594.67,0.33632098]
[1741202478002,2.48217174,595.79,594.67,0.33632098]
[1741202478297,0.95468144,595.79,594.67,0.33632098]
[1741202478598,1.23495585,595.78,594.67,0.33632098]
[1741202479303,1.23495585,595.84,594.67,0.33632098]
[1741202479895,1.23495585,595.83,594.67,0.33632098]
[1741202480605,1.23495585,595.84,594.67,0.33632098]
[1741202481308,1.23495585,595.83,594.67,0.33632098]
[1741202482708,1.23495585,595.82,594.67,0.33632098]
[1741202482909,2.19118578,595.82,594.67,0.33632098]
[1741202483112,0.95622993,595.81,594.67,0.33632098]
[1741202483411,1.23495585,595.82,594.67,0.33632098]
[1741202483611,1.23495585,595.81,594.67,0.33632098]
[1741202484005,2.19118578,595.81,594.67,0.33632098]
[1741202484209,2.19118578,595.8,594.67,0.33632098]
[1741202484407,0.95622993,595.79,594.67,0.33632098]
[1741202484912,1.23495585,595.8,594.67,0.33632098]
[1741202485110,1.23495585,595.78,594.67,0.33632098]
[1741202486012,1.23495585,595.77,594.67,0.33632098]
[1741202486605,1.23495585,595.76,594.67,0.33632098]
[1741202487406,2.19118578,595.8,594.67,0.33632098]
[1741202487612,0.95622993,595.79,594.67,0.33632098]
[1741202488212,1.23495585,595.78,594.67,0.33632098]
[1741202488413,2.19118578,595.78,594.67,0.33632098]
[1741202488611,0.29232889,595.8,594.67,0.33632098]
[1741202488612,2.19118578,595.77,594.67,0.33632098]
[1741202488815,0.95622993,595.76,594.67,0.33632098]
[1741202489317,1.24051183,595.75,594.67,0.33632098]
[1741202489713,1.24051183,595.74,594.67,0.33632098]
[1741202490511,1.24051183,595.73,594.67,0.33632098]
[1741202491318,3.72670965,595.74,594.67,0.33632098]
[1741202491517,2.48619782,595.73,594.67,0.33632098]
[1741202491718,0.95622993,595.73,594.67,0.33632098]
[1741202491918,1.24051183,595.72,594.67,0.33632098]
[1741202492916,1.24051183,595.71,594.67,0.33632098]
[1741202493319,2.19674176,595.73,594.67,0.33632098]
[1741202493524,0.95622993,595.72,594.67,0.33632098]
[1741202493725,1.24051183,595.73,594.67,0.33632098]
[1741202494226,1.24051183,595.72,594.67,0.33632098]
[1741202494927,1.24051183,595.71,594.67,0.33632098]
[1741202495124,2.19674176,595.71,594.67,0.33632098]
[1741202495322,0.95707295,595.7,594.67,0.33632098]
[1741202495720,2.48838967,595.7,594.67,0.33632098]
[1741202495919,0.95707295,595.7,594.67,0.33632098]
[1741202496322,2.19758478,595.69,594.67,0.33632098]
[1741202496526,0.95707295,595.68,594.67,0.33632098]
[1741202496927,1.24051183,595.67,594.67,0.33632098]
[1741202497128,2.19758478,595.67,594.67,0.33632098]
[1741202497324,2.19758478,595.66,594.67,0.33632098]
[1741202497525,0.95707295,595.65,594.67,0.33632098]
[1741202498229,1.24051183,595.66,594.67,0.33632098]
[1741202498429,1.24051183,595.65,594.67,0.33632098]
[1741202499427,1.24051183,595.64,594.67,0.33632098]
[1741202500131,1.24051183,595.63,594.67,0.33632098]
[1741202501231,2.19758478,595.65,594.67,0.33632098]
[1741202501426,1.24051183,595.65,594.67,0.33632098]
[1741202502031,0.95729973,595.73,594.67,0.33632098]
[1741202502625,1.24051183,595.72,594.67,0.33632098]
[1741202503325,1.24051183,595.71,594.67,0.33632098]
[1741202503727,1.24051183,595.71,594.67,1.8255376]
[1741202503928,1.24051183,595.7,594.67,1.8255376]
[1741202504529,1.24051183,595.69,594.67,1.8255376]
[1741202505130,1.24051183,595.68,594.67,1.8255376]
[1741202505627,1.24051183,595.67,594.67,1.8255376]
[1741202505826,2.19792414,595.67,594.67,0.33632098]
[1741202506032,0.95741231,595.66,594.67,0.33632098]
[1741202506328,1.24051183,595.67,594.67,0.33632098]
[1741202506734,1.24051183,595.66,594.67,0.33632098]
[1741202507329,1.24051183,595.65,594.67,0.33632098]
[1741202507834,1.263,595.64,594.67,0.33632098]
[1741202508234,2.50351183,595.64,594.67,0.33632098]
[1741202508430,0.95741231,595.63,594.67,0.33632098]
[1741202508837,2.19792414,595.63,594.67,0.33632098]
[1741202509339,1.24051183,595.62,594.67,0.33632098]
[1741202510139,1.24051183,595.61,594.67,0.33632098]
[1741202511339,0.95741231,595.62,594.67,0.33632098]
[1741202511539,2.19792414,595.63,594.67,0.33632098]
[1741202511941,0.95758491,595.62,594.67,0.33632098]
[1741202512135,2.19809674,595.63,594.67,0.33632098]
[1741202513542,2.19794671,595.62,594.67,0.33632098]
[1741202513742,0.95743488,595.61,594.67,0.33632098]
[1741202513943,1.24051183,595.61,594.67,0.33632098]
[1741202514441,1.24051183,595.6,594.67,0.33632098]
[1741202514837,1.24051183,595.59,594.67,0.33632098]
[1741202515036,3.72984253,595.59,594.67,0.33632098]
[1741202515237,2.4893307,595.58,594.67,0.33632098]
[1741202515441,2.19794671,595.58,594.67,0.33632098]
[1741202515744,0.95743488,595.57,594.67,0.33632098]
[1741202516344,0.95743488,595.6,594.67,0.33632098]
[1741202516537,1.24051183,595.61,594.67,0.33632098]
[1741202516737,2.7817259,595.62,594.67,0.33632098]
[1741202516738,1.24051183,595.6,594.67,0.33632098]
[1741202517644,1.24051183,595.59,594.67,0.33632098]
[1741202518344,1.24051183,595.58,594.67,0.33632098]
[1741202519046,1.24051183,595.61,594.67,0.33632098]
[1741202519646,1.24051183,595.6,594.67,0.33632098]
[1741202520245,1.24051183,595.59,594.67,0.33632098]
[1741202520649,1.24051183,595.58,594.67,0.33632098]
[1741202521549,1.24051183,595.61,594.67,0.33632098]
[1741202522051,1.24051183,595.6,594.67,0.33632098]
[1741202522445,1.24051183,595.61,594.67,0.33632098]
[1741202524353,1.24051183,595.6,594.67,0.33632098]
[1741202524849,1.24051183,595.59,594.67,0.33632098]
[1741202525850,1.24051183,595.58,594.67,0.33632098]
[1741202526047,2.1966171,595.59,594.67,0.33632098]
[1741202526251,0.95610527,595.58,594.67,0.33632098]
[1741202526551,1.24051183,595.59,594.67,0.33632098]
[1741202526751,2.1966171,595.61,594.67,0.33632098]
[1741202526952,0.95610527,595.6,594.67,0.33632098]
[1741202527148,1.24051183,595.61,594.67,0.33632098]
[1741202527652,2.1966171,595.61,594.67,0.33632098]
[1741202527952,0.95610527,595.6,594.67,0.33632098]
[1741202528155,1.24051183,595.61,594.67,0.33632098]
[1741202528355,2.48570021,595.62,594.67,0.33632098]
[1741202528652,2.1966171,595.61,594.67,0.33632098]
[1741202528851,0.95610527,595.6,594.67,0.33632098]
[1741202529548,1.24051183,595.61,594.67,0.33632098]
[1741202530847,1.24051183,595.6,594.67,0.33632098]
[1741202533355,0.33580147,595.59,594.21,1.48921662]
[1741202533556,0.33580147,595.59,594.57,0.29244066]
[1741202533856,0.95611772,595.58,594.22,0.33657567]
[1741202534057,0.95611772,595.57,594.57,0.29249474]
[1741202534356,0.95611772,595.57,594.22,0.33657567]
[1741202534357,4.18144847,595.56,594.22,0.33657567]
[1741202534558,2.48590607,595.55,594.22,0.33657567]
[1741202534756,0.95611772,595.54,594.22,0.33657567]
[1741202534952,0.95611772,595.53,594.22,0.33657567]
[1741202535156,0.95611772,595.52,594.22,0.33657567]
[1741202535556,0.95611772,595.52,594.23,0.29250457]
[1741202535754,2.48590607,595.52,594.24,0.33656435]
[1741202536159,2.19662955,595.51,594.24,0.33656435]
[1741202536564,0.95611772,595.5,594.24,0.33656435]
[1741202536770,2.19662955,595.5,594.24,0.33656435]
[1741202536970,0.95611772,595.49,594.24,0.33656435]
[1741202537464,2.48919314,595.49,594.24,0.33656435]
[1741202537663,0.95611772,595.48,594.24,0.33656435]
[1741202537868,1.24051183,595.47,594.24,0.33656435]
[1741202538068,2.19662955,595.47,594.24,0.33656435]
[1741202538271,0.95611772,595.46,594.24,0.33656435]
[1741202538570,1.24051183,595.45,594.24,0.33656435]
[1741202539169,1.24051183,595.44,594.24,0.33656435]
[1741202539769,0.95611772,595.45,594.24,0.33656435]
[1741202540166,0.29257835,595.44,594.24,0.33656435]
[1741202544970,0.33580711,595.58,594.24,0.33656435]
[1741202545368,0.29247876,595.5,594.24,0.33656435]
[1741202545568,2.52947548,595.58,594.24,0.33656435]
[1741202545772,0.95315654,595.57,594.24,0.33656435]
[1741202545970,0.33580711,595.58,594.24,0.33656435]
[1741202546474,0.29246524,595.56,594.24,0.33656435]
[1741202548178,0.33580711,595.58,594.24,0.33656435]
[1741202548371,0.29246401,595.56,594.24,0.33656435]
[1741202551081,5.70307161,595.57,594.24,0.33656435]
[1741202551277,2.47774086,595.56,594.24,0.33656435]
[1741202551478,1.24051183,595.55,594.24,0.33656435]
[1741202551674,2.76509615,595.55,594.24,0.33656435]
[1741202551980,0.95315654,595.54,594.24,0.33656435]
[1741202552172,1.24051183,595.55,594.24,0.33656435]
[1741202552371,0.95315654,595.55,594.24,0.33656435]
[1741202552673,2.47774086,595.55,594.24,0.33656435]
[1741202552982,2.19366837,595.55,594.24,0.33656435]
[1741202553279,0.95315654,595.54,594.24,0.33656435]
[1741202553479,0.95315654,595.55,594.24,0.33656435]
[1741202553672,0.2924677,595.56,594.24,0.33656435]
[1741202554073,0.33580711,595.58,594.24,0.33656435]
[1741202554373,0.30877829,595.57,594.24,0.33656435]
[1741202554574,0.29246401,595.56,594.24,0.33656435]
[1741202554777,0.30877829,595.55,594.24,0.33656435]
[1741202555180,0.29246401,595.56,594.24,0.33656435]
[1741202555374,0.30877599,595.55,594.24,0.33656435]
[1741202555579,2.77020487,595.56,594.24,0.33656435]
[1741202555881,0.30876865,595.55,594.24,0.33656435]
[1741202556080,1.54928048,595.55,594.24,0.33656435]
[1741202556273,1.24051183,595.55,594.24,0.33656435]
[1741202556981,0.30877735,595.54,594.24,0.33656435]
[1741202557380,0.60126717,595.54,594.24,0.33656435]
[1741202557575,0.30877735,595.53,594.24,0.33656435]
[1741202557974,3.5341081,595.53,594.24,0.33656435]
[1741202558282,2.78651821,595.52,594.24,0.33656435]
[1741202558479,0.30879166,595.51,594.24,0.33656435]
[1741202558980,1.013,595.5,594.24,0.33656435]
[1741202559584,1.96615654,595.5,594.24,0.33656435]
[1741202560186,3.49074086,595.5,594.24,0.33656435]
[1741202560379,3.51782672,595.49,594.24,0.33656435]
[1741202560580,0.95315654,595.48,594.24,0.33656435]
[1741202560981,2.48616434,595.49,594.24,0.33656435]
[1741202562986,2.19366837,595.49,594.24,0.33656435]
[1741202563387,0.29249719,595.48,594.24,0.33656435]
[1741202565989,4.23833075,595.5,594.24,0.33656435]
[1741202566190,2.47791699,595.49,594.24,0.33656435]
[1741202566488,0.29249597,595.47,594.24,0.33656435]
[1741202567890,1.5330078,595.47,594.24,0.33656435]
[1741202569092,1.24051183,595.47,594.24,0.33656435]
[1741202569387,1.53301148,595.47,594.24,0.33656435]
[1741202570790,1.24051183,595.46,594.24,0.33656435]
[1741202571393,0.29249965,595.47,594.24,0.33656435]
[1741202571394,1.24051183,595.45,594.24,0.33656435]
[1741202572095,1.24051183,595.46,594.24,0.33656435]
[1741202572585,1.24051183,595.45,594.24,0.33656435]
[1741202572986,1.24051183,595.46,594.24,0.33656435]
[1741202573393,1.24051183,595.45,594.24,0.33656435]
[1741202574394,1.24051183,595.44,594.24,0.33656435]
[1741202574990,2.76930783,595.44,594.24,0.33656435]
[1741202575194,0.9554975,595.43,594.24,0.33656435]
[1741202575395,0.9554975,595.43,594.31,1.48921662]
[1741202575595,1.24051183,595.43,594.31,1.48921662]
[1741202575795,1.24051183,595.43,594.32,0.33651904]
[1741202576197,2.19600933,595.44,594.32,0.33651904]
[1741202576396,0.9554975,595.43,594.32,0.33651904]
[1741202576797,2.4842935,595.43,594.32,0.33651904]
[1741202576996,2.19600933,595.43,594.32,0.33651904]
[1741202577197,0.9554975,595.42,594.32,0.33651904]
[1741202577497,0.9554975,595.42,594.33,1.48921662]
[1741202577698,0.9554975,595.43,594.33,1.48921662]
[1741202577897,1.24051183,595.44,594.33,1.48921662]
[1741202578094,1.24051183,595.43,594.33,1.48921662]
[1741202578491,2.19600933,595.43,594.33,1.48921662]
[1741202578697,1.528796,595.48,594.33,1.48921662]
[1741202578698,0.9554975,595.42,594.33,1.48921662]
[1741202578997,0.9554975,595.46,594.34,0.33650772]
[1741202579197,1.24051183,595.47,594.34,0.33650772]
[1741202579795,1.24051183,595.46,594.34,0.33650772]
[1741202580495,2.19600933,595.47,594.34,0.33650772]
[1741202580696,1.24051183,595.47,594.34,0.33650772]
[1741202581299,1.24051183,595.57,594.34,0.33650772]
[1741202581499,0.95589436,595.56,594.34,0.33650772]
[1741202587106,1.24051183,595.55,594.34,0.33650772]
[1741202587403,0.95589436,595.54,594.34,0.33650772]
[1741202588301,0.95589436,595.56,594.39,1.48921662]
[1741202588499,1.24051183,595.57,594.41,0.33646809]
[1741202588702,2.19640619,595.57,594.41,0.33646809]
[1741202588898,0.95589436,595.56,594.41,0.33646809]
[1741202589103,1.24051183,595.57,594.41,0.33646809]
[1741202591402,0.956,595.57,594.41,0.33646809]
[1741202595897,1.91177353,595.57,594.41,0.33646809]
[1741202596298,4.17875894,595.57,594.41,0.33646809]
[1741202596501,0.95577353,595.56,594.41,0.33646809]
[1741202600000,2.1952962,595.56,594.41,0.33646809]
[1741202600706,0.95577353,595.56,594.41,0.33646809]
[1741202601008,2.19552267,595.57,594.41,0.33646809]
[1741202601404,0.956,595.57,594.41,0.33646809]
[1741202614013,0.956,595.57,594.52,1.48921662]
[1741202614314,0.956,595.57,594.53,0.33640018]
[1741202615921,0.956,595.57,594.58,1.48921662]
[1741202616121,0.956,595.57,594.59,0.33636623]
[1741202620226,0.956,595.57,594.6,1.48921662]
[1741202620524,0.956,595.57,594.61,0.33635492]
[1741202634135,0.956,595.57,594.62,1.48921662]
[1741202634329,0.956,595.57,594.64,0.33633795]
[1741202635841,0.956,595.57,594.68,1.48921662]
[1741202636041,0.956,595.57,594.69,0.33630967]
[1741202638336,0.956,595.57,594.75,1.48921662]
[1741202638537,0.956,595.57,594.76,0.33627009]
[1741202656652,0.956,595.57,594.8,1.48921662]
[1741202656852,0.956,595.57,594.81,0.33624182]
[1741202663647,0.956,595.57,594.84,1.48921662]
[1741202663847,0.956,595.57,594.85,0.33621921]
[1741202665953,0.956,595.57,594.91,1.48921662]
[1741202666154,0.956,595.57,594.92,0.33617965]
[1741202667954,0.956,595.57,594.98,1.48921662]
[1741202668355,0.95201786,596.35,594.99,0.3361401]
[1741202668555,1.23952267,596.34,594.99,0.3361401]
[1741202669362,1.23952267,596.46,594.99,0.3361401]
[1741202669559,0.29208353,596.36,594.99,0.3361401]
[1741202669761,0.95139009,596.45,594.99,0.3361401]
[1741202669959,1.23952267,596.62,594.99,0.3361401]
[1741202670161,0.64355181,596.61,594.99,0.3361401]
[1741202670354,0.64355888,596.6,594.99,0.3361401]
[1741202670554,0.6435645,596.59,594.99,0.3361401]
[1741202670756,0.64357012,596.58,594.99,0.3361401]
[1741202670955,0.64357574,596.57,594.99,0.3361401]
[1741202671155,0.64358136,596.56,594.99,0.3361401]
[1741202671358,0.3083259,596.55,594.99,0.3361401]
[1741202671554,0.3352667,596.54,594.99,0.3361401]
[1741202671760,0.3083259,596.53,594.99,0.3361401]
[1741202671961,0.33527794,596.52,594.99,0.3361401]
[1741202672356,0.62734186,596.52,594.99,0.3361401]
[1741202674065,0.33527794,596.52,594.99,0.3361401]
[1741202675163,0.29204921,596.51,594.99,0.3361401]
[1741202677164,1.28456035,596.52,594.99,0.3361401]
[1741202677363,0.33527794,596.52,594.99,0.3361401]
[1741202678364,0.29207617,596.51,594.99,0.3361401]
[1741202680063,0.33527794,596.52,594.99,0.3361401]
[1741202687667,1.221,596.55,594.99,0.3361401]
[1741202694572,0.29199653,596.66,594.99,0.3361401]
[1741202694766,0.30821436,596.65,594.99,0.3361401]
[1741202695467,0.30821436,596.81,594.99,0.3361401]
[1741202695672,0.30821436,596.8,594.99,0.3361401]
[1741202695872,0.64334061,596.79,594.99,0.3361401]
[1741202696074,0.64334623,596.78,594.99,0.3361401]
[1741202696275,0.64335185,596.77,594.99,0.3361401]
[1741202696479,0.64335746,596.76,594.99,0.3361401]
[1741202696674,0.64336308,596.75,594.99,0.3361401]
[1741202696870,0.64336869,596.74,594.99,0.3361401]
[1741202697074,0.64337431,596.73,594.99,0.3361401]
[1741202697271,0.64337993,596.72,594.99,0.3361401]
[1741202697472,0.64338554,596.71,594.99,0.3361401]
[1741202697675,0.64339116,596.7,594.99,0.3361401]
[1741202697978,0.64339678,596.69,594.99,0.3361401]
[1741202698174,0.6434024,596.68,594.99,0.3361401]
[1741202698370,0.64340801,596.67,594.99,0.3361401]
[1741202698577,0.30821436,596.66,594.99,0.3361401]
[1741202701378,0.2920051,596.65,594.99,0.3361401]
[1741202701578,0.30821436,596.64,594.99,0.3361401]
[1741202701974,0.2920051,596.65,594.99,0.3361401]
[1741202702582,0.2920051,596.65,595.03,1.48921662]
[1741202702782,0.2920051,596.65,595.05,0.3361062]
[1741202703085,2.75261934,596.65,595.05,0.3361062]
[1741202703380,3.99214201,596.65,595.05,0.3361062]
[1741202703686,0.30822664,596.64,595.05,0.3361062]
[1741202704181,0.33521613,596.63,595.05,0.3361062]
[1741202704382,0.30822664,596.62,595.05,0.3361062]
[1741202704587,0.33522736,596.61,595.05,0.3361062]
[1741202704880,0.30822664,596.6,595.05,0.3361062]
[1741202705085,0.3352386,596.59,595.05,0.3361062]
[1741202705485,0.30827021,596.58,595.05,0.3361062]
[1741202705684,0.64351443,596.58,595.05,0.3361062]
[1741202705882,0.30827021,596.57,595.05,0.3361062]
[1741202706482,0.30827021,596.57,595.06,1.48921662]
[1741202706685,0.30827021,596.57,595.08,0.33608926]
[1741202706985,1.2546603,596.57,595.08,0.33608926]
[1741202707181,0.30827021,596.56,595.08,0.33608926]
[1741202707386,0.60028634,596.56,595.08,0.33608926]
[1741202707579,0.30827021,596.55,595.08,0.33608926]
[1741202708481,0.30827021,596.55,595.15,1.48921662]
[1741202708882,0.30827021,596.55,595.17,0.33603844]
[1741202710184,0.30827021,596.55,595.17,1.82525506]
[1741202710386,0.30827021,596.57,595.17,1.82525506]
[1741202711383,0.29199775,596.56,595.17,1.82525506]
[1741202711584,0.30827021,596.55,595.17,0.33603844]
[1741202711981,0.29199775,596.56,595.17,0.33603844]
[1741202712185,0.30826001,596.55,595.17,0.33603844]
[1741202712986,0.30826001,596.55,595.19,1.48921662]
[1741202713185,0.30826001,596.55,595.21,0.33601585]
[1741202713386,3.53101895,596.57,595.21,0.33601585]
[1741202713585,2.77491957,596.56,595.21,0.33601585]